Cogmind - Beta 13 @@@ ROGUE MODE // 2024.06.04 @ 21:42:32 Player: Orrad Result: Destroyed by U1-8EC(R) with Subdweller Beam Cannon Performance ------------- Evolutions (0) 0 Regions Visited (2) 400 Robots Destroyed (13) 65 Value Destroyed (435) 435 Prototype IDs (0) 0 Alien Tech Used (0) 0 Bonus (0) 0 TOTAL SCORE: 900 Bonus ------- None Cogmind --------- Core Integrity 0/250 Matter 218/300 Energy 160/160 System Corruption 0% Temperature Cool (9) Movement Core (400) Ox7 Location -10/Subcaves Parts ------- > --- POWER (1) -------- Light Nuclear Core > --- PROPULSION (2) --- (None) > --- UTILITY (2) ------ Medium Storage Unit Signal Interpreter > --- WEAPON (2) ------- Subdweller Machine Gun Grenade Launcher > --- INVENTORY (10) --- Ion Engine Ion Engine Aluminum Leg Aluminum Leg Propulsion Shielding Makeshift Hacking Suite Small Laser Light Assault Rifle Light Cannon Peak State ------------ > --- POWER ------------ Light Nuclear Core > --- PROPULSION ------- Aluminum Leg Aluminum Leg > --- UTILITY ---------- Small Storage Unit Visual Processing Unit > --- WEAPON ----------- Light Assault Rifle > --- INVENTORY -------- Ion Engine Aluminum Leg Grenade Launcher [Rating: 9] Favorites ----------- Power Light Nuclear Core Engine Ion Engine Power Core Light Nuclear Core Propulsion Aluminum Leg Leg Aluminum Leg Utility Medium Storage Unit Storage Medium Storage Unit Processor Signal Interpreter Weapon Light Assault Rifle Energy Gun Small Laser Ballistic Gun Light Assault Rifle Launcher Grenade Launcher Build | -11 -10 -10 ------- Run | Yrd Mat Sub Slots Evolved . | . . . Power . | . . . Propulsion . | . . . Utility . | . . . Weapon . | . . . Parts Attached 18 | 6 10 2 Power 4 | 1 3 . Engine 3 | 1 2 . Core 1 | . 1 . Reactor . | . . . Propulsion 4 | 2 2 . Treads . | . . . Leg 4 | 2 2 . Wheel . | . . . Hover . | . . . Flight . | . . . Utility 4 | 1 3 . Device . | . . . Storage 2 | 1 1 . Processor 2 | . 2 . Hackware . | . . . Protection . | . . . Artifact . | . . . Weapon 6 | 2 2 2 Energy Gun 2 | 1 1 . Energy Cannon . | . . . Ballistic Gun 3 | 1 1 1 Ballistic Cannon . | . . . Launcher 1 | . . 1 Special Weapon . | . . . Impact Weapon . | . . . Slashing Weapon . | . . . Piercing Weapon . | . . . Special Melee Weapon . | . . . Unidentified Prototypes . | . . . Parts Lost 7 | . 5 2 Power 2 | . 2 . Propulsion 4 | . 2 2 Utility . | . . . Weapon 1 | . 1 . Highest Loss Streak 4 | . 4 2 To Critical Strikes . | . . . Average Slot Usage (%) 84 | . 90 75 Engine 2 | . 4 . Core 11 | . 9 14 Leg 17 | . 27 4 Storage 16 | . 18 14 Processor 8 | . 4 14 Energy Gun 7 | . 11 2 Ballistic Gun 18 | . 14 25 Naked Turns . | . . . Heaviest Build 22 | 13 22 20 Greatest Support 20 | 20 20 20 Greatest Overweight (x) 6 | 4 1 6 Average Overweight (x) 1 | . . 4 Largest Inventory Capacity 10 | 8 10 10 Average Capacity 9 | 7 9 10 Most Carried 9 | 2 7 9 Average Carried 5 | . 4 8 Final Capacity 10 | 8 10 10 Final Carried 9 | 1 7 9 Class Distribution -------------------- 62% | Mutant 37% | Scavenger-Mutant Dominant Class ---------------- Scavenger-Mutant | -10/Materials Mutant | -10/Subcaves Resources | -11 -10 -10 ----------- Run | Yrd Mat Sub Matter Collected 403 | 170 201 32 Remotely . | . . . Salvage Created 509 | . 418 91 Parts 31 | . 24 7 Haulers Intercepted . | . . . Recyclers Shooed . | . . . Parts Field Recycled . | . . . Retrieved Matter . | . . . Parts Self-Destructed . | . . . Prevented . | . . . Kills | -11 -10 -10 ------- Run | Yrd Mat Sub Combat Hostiles Destroyed 10 | . 7 3 Guns 9 | . 7 2 AOE 1 | . . 1 Classes Destroyed 4 | . 3 1 Recycler 1 | . 1 . Watcher 2 | . 2 . Grunt 7 | . 7 . Subdweller 3 | . . 3 Best Kill Streak 4 | . 4 2 Combat Bots Only 4 | . 4 2 Max Kills in Single Turn 1 | . 1 1 Gunslinging . | . . . Exploded 1 | . . 1 Melee . | . . . Uniques/NPCs Destroyed . | . . . Combat | -11 -10 -10 -------- Run | Yrd Mat Sub Hostile Shots Fired 97 | . 77 20 Missed 28 | . 25 3 Damage Taken 1128 | . 717 411 Core 274 | . 161 113 Absorbed by Shields . | . . . Core Remaining (%) 100 | 100 . . Volleys Fired 71 | . 58 13 Largest 2 | . 2 2 Hottest 70 | . 70 60 Shots Fired 113 | . 87 26 Gun 107 | . 87 20 Cannon . | . . . Launcher 6 | . . 6 Special . | . . . Kinetic 71 | . 58 13 Thermal 36 | . 29 7 Explosive 6 | . . 6 Electromagnetic . | . . . Robot Hit Streak 16 | . 8 16 Robot Miss Streak 3 | . 3 1 Penetration Max . | . . . Secondary Targets 4 | . 4 . Max Gunslinging Chain 1 | . 1 . Shots Hit Robots 80 | . 60 20 Core Hits 35 | . 25 10 Critical Kills . | . . . Critical Parts Destroyed . | . . . Critical Strikes 3 | . 3 . Burn 3 | . 3 . Melee Attacks . | . . . Impact . | . . . Slashing . | . . . Piercing . | . . . Sneak Attacks . | . . . Combat Hostiles . | . . . Follow-up Attacks . | . . . Damage Inflicted 1014 | . 597 417 Guns 765 | . 597 168 Cannons . | . . . Explosions 249 | . . 249 Melee . | . . . Ramming . | . . . Kinetic 430 | . 329 101 Thermal 335 | . 268 67 Explosive 249 | . . 249 Electromagnetic . | . . . Impact . | . . . Slashing . | . . . Piercing . | . . . Highest Corruption . | . . . Average Corruption . | . . . Corruption Purged . | . . . Corruption Blocked . | . . . Overload Shots . | . . . Overflow Damage . | . . . Projectiles . | . . . Explosions . | . . . Melee . | . . . Knockbacks . | . . . Impact . | . . . Kinetic . | . . . Secondary . | . . . Self-Inflicted Damage . | . . . Shots . | . . . Rammed . | . . . Targets Rammed 3 | . 3 . Kicked 3 | . 3 . Crushed . | . . . Highest Temperature 282 | . 282 . Average Temperature 101 | . 101 . Received Heat Transfer 468 | . 414 54 Effects 1 | . 1 . Energy Bleed 1 | . 1 . Siege Activations . | . . . Robots Corrupted . | . . . Combat Hostiles . | . . . Parts Fried . | . . . Impact Corruptions . | . . . Robots Melted . | . . . Combat Hostiles . | . . . Parts Melted 4 | . 4 . Heat Transferred 1150 | . 1000 150 Parts Sabotaged . | . . . Parts Stolen . | . . . Parts Stripped . | . . . Power Chain Reactions . | . . . Alert | -11 -10 -10 ------- Run | Yrd Mat Sub Peak Influence 179 | . 179 . Initial . | . . . Average 50 | . 54 . Maximum Alert Level . | . . . Low Security (%) 100 | 100 100 . Level 1 . | . . . Level 2 . | . . . Level 3 . | . . . Level 4 . | . . . Level 5 . | . . . High Security . | . . . Max Security . | . . . Squads Dispatched . | . . . Investigation . | . . . Extermination . | . . . Reinforcement . | . . . Assault . | . . . Garrison . | . . . Intercept . | . . . Searches Triggered . | . . . Construction Impeded . | . . . Haulers Reinforced . | . . . Active Scanning Responses . | . . . Cargo Convoy Interrupts . | . . . Stealth | -11 -10 -10 --------- Run | Yrd Mat Sub Distress Signals 1 | . 1 . Communications Jammed . | . . . Distress Signals . | . . . Times Spotted 19 | . 15 4 Peak Tracking Total 4 | . 4 2 Tactical Retreats 3 | . 3 . Traps | -11 -10 -10 ------- Run | Yrd Mat Sub Traps Triggered . | . . . Indirectly . | . . . Trap Hack Attempts . | . . . Triggered . | . . . Disarmed . | . . . Reprogrammed . | . . . Reused . | . . . Traps Extracted . | . . . Installed . | . . . Triggered . | . . . Machines | -11 -10 -10 ---------- Run | Yrd Mat Sub Machines Disabled . | . . . Max in Single Turn . | . . . Machines Repaired . | . . . Machines Dismantled . | . . . Machines Sabotaged . | . . . Overloaded Fab Kills . | . . . Hacking | -11 -10 -10 --------- Run | Yrd Mat Sub Machines Accessed . | . . . Terminals . | . . . Fabricators . | . . . Repair Stations . | . . . Recycling Units . | . . . Scanalyzers . | . . . Garrison Access . | . . . Total Hacks . | . . . Successful . | . . . Failed . | . . . Catastrophic . | . . . Database Lockouts . | . . . Manual . | . . . Terminals . | . . . Fabricators . | . . . Repair Stations . | . . . Recycling Units . | . . . Scanalyzers . | . . . Garrison Access . | . . . Terminal Hacks . | . . . Fabricator Hacks . | . . . Repair Station Hacks . | . . . Recycling Unit Hacks . | . . . Scanalyzer . | . . . Garrison Access Hacks . | . . . Unauthorized Hacks . | . . . Terminals . | . . . Fabricators . | . . . Repair Stations . | . . . Recycling Units . | . . . Scanalyzers . | . . . Garrison Access . | . . . Data Cores Recovered . | . . . Used . | . . . Hacking Detections . | . . . Full Trace Events . | . . . Feedback Events . | . . . Feedback Blocked . | . . . Robot Schematics Acquired . | . . . Robots Built . | . . . Authchips . | . . . Time . | . . . Total Robot Build Rating . | . . . Part Schematics Acquired . | . . . Parts Built . | . . . Authchips . | . . . Time . | . . . Total Part Build Rating . | . . . Parts Repaired . | . . . Time . | . . . Parts Recycled . | . . . Recycled Matter . | . . . Retrieved Matter . | . . . Retrieved Components . | . . . Parts Scanalyzed . | . . . Part Schematics Acquired . | . . . Parts Damaged . | . . . Bothacking | -11 -10 -10 ------------ Run | Yrd Mat Sub Used RIF Installer . | . . . Robots Hacked . | . . . Non-combat . | . . . Combat . | . . . Robot Hacks Applied . | . . . Relay Couplers Released . | . . . Fabnet Peak Effective % . | . . . Robots Rewired . | . . . Allies Hacked . | . . . Hacks Repelled . | . . . Allies | -11 -10 -10 -------- Run | Yrd Mat Sub Total Allies . | . . . Largest Group . | . . . Highest-Rated Group . | . . . Highest-Rated Ally . | . . . Total Orders . | . . . Ally Attacks . | . . . Total Damage . | . . . Kills . | . . . Allies Corrupted . | . . . Allies Melted . | . . . Intel | -11 -10 -10 ------- Run | Yrd Mat Sub Robot Analysis Total . | . . . Derelict Logs Recovered . | . . . Drone Launches . | . . . Drone Recoveries . | . . . Exploration | -11 -10 -10 ------------- Run | Yrd Mat Sub Turns Passed 1766 | 85 977 704 Spaces Moved 883 | 59 591 233 Core 175 | 10 2 163 Treads . | . . . Legs 708 | 49 589 70 Wheels . | . . . Hover . | . . . Flight . | . . . Fastest Speed 50 | 50 100 120 Average Speed 173 | 125 136 280 Slowest Speed 350 | 250 190 350 Overloaded Moves . | . . . Propulsion Burnouts . | . . . Robots Hopped . | . . . Cave-ins Triggered . | . . . Exploration Rate (%) 26 | 4 59 16 Regions Visited 2 Branch Regions 1 Pre-discovered Areas . | . . . Known Exits Taken 1 | . 1 . Unknown Exits Taken 1 | 1 . . Scrap Searched 5 | . . 5 Spaces Dug . | . . . Terrain Destroyed 8 | . . 8 Melee . | . . . Projectile . | . . . AOE 8 | . . 8 Terrain Rammed . | . . . Walls Destroyed . | . . . Machines Disabled . | . . . Actions | -11 -10 -10 --------- Run | Yrd Mat Sub Total 1013 | 68 685 260 Wait 11 | . 5 6 Move 881 | 58 590 233 Hop . | . . . Pick Up 23 | 4 15 4 Fast Attach 4 | 3 1 . Attach 11 | 3 8 . Detach . | . . . Swap 3 | . 1 2 Drop 6 | . 4 2 Fire 71 | . 58 13 Melee . | . . . Ram . | . . . Kick 3 | . 3 . Crush . | . . . Escape Stasis . | . . . Rewire . | . . . Trap . | . . . Miscellaneous . | . . . Route ------- -11/Scrapyard -10/Materials (discovered 2 exits: *Mat / *Sub) -10/Subcaves History --------- Turn | Location | Event 13 | -11/Scrapyard | Discovered new exit (range 15) 86 | -11/Scrapyard | Entered Materials 308 | -10/Materials | Discovered new exit (range 11) 328 | -10/Materials | Build established: Mutant 409 | -10/Materials | Core integrity fell below 50% 435 | -10/Materials | Lost 4 parts (1p2n1w) 808 | -10/Materials | Identified exit to Materials 878 | -10/Materials | Build established: Scavenger-Mutant 1055 | -10/Materials | Discovered new exit (range 8) 1062 | -10/Materials | Identified exit to Subcaves 1063 | -10/Materials | Entered Subcaves 1478 | -10/Subcaves | Build established: Mutant 1748 | -10/Subcaves | Core integrity fell below 20% 1767 | -10/Subcaves | Destroyed by U1-8EC(R) with Subdweller Beam Cannon Last Messages --------------- Acquired 1 matter. Acquired Sub. Machine Gun. Acquired Scrap Shield Fragment. Dropped Scrap Shield Fragment. Acquired Sub. Power Source. Dropped Sub. Power Source. Acquired 10 matter. Searching scrap... Found Mak. Hacking Suite. Found Mak. Sword. Found 17 Matter. Acquired Mak. Hacking Suite. Searching scrap... Found Sub. Laser. Found 20 Matter. Subatomizers dissect the Sub. Laser. ON-3ZU(R) emerges from the Twisted Machinery. U1-8EC(R) emerges from concealment. TV-85O(R) destroyed. ON-3ZU(R) destroyed. Map ----- +----------------------------------------------------+ | ?????????????????????????????????????????????????? | | ?????????????????????????????????????????????????? | | ?????????????????????????????????????????????????? | | ?????????????????????????????????????????????????? | | ?????????????????????????????????????????????????? | | ?????????????????????????????????????????????????? | | ?????????????????????????????????????????????????? | | ?????????????????????????????????????????????????? | | ????????????????????? ??????????????????????????? | | ????????????????????? ??????????????????????????? | | ???????????????????? ??????????????????????????? | | ????????????????????? ??????????????????????????? | | ?????????????????#??? ??????????????????????????? | | ????????????????? #?? #?????????????????????????? | | ????????????????? ?? ?????????????????????????? | | ????????????????? ?# #???????????????????####?? | | ???????????????? ## #???????###????????? "#?? | | ??????????????? "" #???????# #?????????#" #?? | | ?????????????### "" #???????#%####???####""#?? | | ?????????????" "" #???????#[ " ##### /% #?? | | ????????????"" ##??????## # #?? | | ???????????"" " R ##??????#" ## "#### | | ???????????? % ! #??????#### ## "## # | | ?????????????"" ####????###" "###### | | ???????????????# ##?### " ### | | ???????????# @ ### | | ??????????# ### ########### | | ??????????# ## #?# #?????# | | ??????????# ???## # ### #????## | | ????????????????## ## #????# | | ????????????????# # ##???# | | ????????????????# ## #????## | | ????????????????#< ??### #?????#### | | ??????????? ????#?????# #????????# | | ????????????? ?????????##### #???????## | | ?????????????? ???????????## #??????## | | ??????????????? ???????????## #??????# | | ????????????????" ???????????## #???????# | | ????????????????## ??????????### #???????# | | ????????????????# ###?????## ### #????????# | | ???????????# # ## ###### ### #?????##### | | ????????? ### ##??#### ### | | ????????????????# ## ####?# ## | | ????????????????##### ## ### ### | | ????????????????????###?## ### ### ## | | ????????????????????????# ##?# ## ## | | ??????????????????????# #??# ## | | ??????????????????????## ###??# #? | | ?????????????????????? ###????# ### # | | ???????????????????? # ???????# ##?# # | +----------------------------------------------------+ Best States ------------- Heat Dissipation 25 Energy Generation 14 Energy Capacity 250 Matter Stores 300 Matter Capacity 300 Sight Range 18 Terrain Scan Density 10 Evasion (%) 55 Item Schematics ----------------- None Robot Schematics ------------------ None Fabricated ------------ Nothing Alien Tech Used ----------------- None Achievements -------------- None Challenges ------------ None Game ------ Seed StorageForceReconfigurator Manual? 0 Play Time 00:16:08 Cumulative 4.2 hours Start 2024.05.27 @ 13:41:58 End 2024.06.04 @ 21:42:32 Sessions 2 Manual Loads 0 Difficulty Rogue Special Mode None Game No. 9 Rogue 9 Adventurer 0 Explorer 0 Win Type - Total 0 Types 0/0/0/0/0/0/0/0/0 Lore% 13 Gallery% 8 Achievement% 9 Wizard Run 0 Options --------- Layout 1 ASCII 0 Keyboard 0 Movement Numpad Keybinds 0 Fullscreen 1 Font 24/Smallcaps Map View 50x35 Zoom Use 0% Tactical HUD 0 Map Filters NONE Filters NONE Steam 1 RUN: 244746ac-a033-4b23-a888-28d7757c22b7